bitfinex/quotes_SOLUSD_20260224
["timestamp","ask_amount","ask_price","bid_price","bid_amount"]
[1771943997046,13.04648462,76.649,76.621,1.11207186]
[1771943997357,13.04478273,76.659,76.63,11.68894456]
[1771943997549,13.04325142,76.668,76.631,1.11207186]
[1771943997752,13.04325142,76.668,76.633,1.11207186]
[1771943998059,52.15431604,76.696,76.632,13.04937884]
[1771943998060,1.19218086,76.683,76.641,1.11207186]
[1771943998259,45.64304529,76.682,76.651,1.11207186]
[1771943998645,13.04087008,76.682,76.651,1.11207186]
[1771943999963,1.19218086,76.692,76.651,1.11207186]
[1771944000147,1.19218086,76.692,76.652,13.04597401]
[1771944000349,1.19218086,76.692,76.653,1.11207186]
[1771944000545,1.19218086,76.689,76.653,1.11207186]
[1771944000759,1.19218086,76.689,76.64,12.80101642]
[1771944001060,1.19218086,76.689,76.65,11.68894456]
[1771944001262,1.19218086,76.689,76.651,1.11207186]
[1771944001573,1.19218086,76.7,76.66,11.68894456]
[1771944001755,1.19218086,76.708,76.661,1.11207186]
[1771944001946,11.68894456,76.7,76.661,1.11207186]
[1771944002147,11.68894456,76.7,76.657,13.04507844]
[1771944002148,1.19218086,76.699,76.657,13.04507844]
[1771944002456,1.19218086,76.699,76.661,1.11207186]
[1771944003041,1.19218086,76.699,76.496,36.28026451]
[1771944003042,1.19218086,76.679,76.63,11.68894456]
[1771944003266,215.10422776,76.707,76.623,13.05087069]
[1771944003267,1.19218086,76.669,76.623,13.05087069]
[1771944003465,1.19218086,76.659,76.61,11.68894456]
[1771944003669,1.19218086,76.649,76.607,1.11207186]
[1771944003858,11.68894456,76.64,76.59,11.68894456]
[1771944004059,1.19218086,76.638,76.596,1.11207186]
[1771944004286,13.04631441,76.65,76.613,1.11207186]
[1771944004560,13.04427226,76.662,76.621,1.11207186]
[1771944004763,46.83701189,76.679,76.641,1.11207186]
[1771944004956,46.83701189,76.679,76.65,11.68894456]
[1771944004957,14.23356115,76.679,76.65,11.68894456]
[1771944005157,1.19218086,76.706,76.661,1.11207186]
[1771944005364,1.19218086,76.706,76.67,12.80101642]
[1771944005556,1.19218086,76.717,76.68,11.68894456]
[1771944005757,1.19218086,76.717,76.671,1.11207186]
[1771944005951,1.19218086,76.715,76.671,1.11207186]
[1771944006156,1.19218086,76.715,76.673,1.11207186]
[1771944006355,13.03509046,76.716,76.681,1.11207186]
[1771944006556,52.10499475,76.769,76.672,13.04257095]
[1771944006557,0.1,76.74,76.691,1.11207186]
[1771944006851,13.03118362,76.739,76.711,1.11207186]
[1771944007161,1.19218086,76.719,76.673,1.11207186]
[1771944007678,1.19218086,76.719,76.681,1.11207186]
[1771944007847,1.19218086,76.709,76.66,11.68894456]
[1771944008047,1.19218086,76.689,76.643,1.11207186]
[1771944008876,1.19218086,76.704,76.661,1.11207186]
[1771944009166,3.69383402,76.705,76.65,11.68894456]
[1771944009167,1.19218086,76.699,76.65,11.68894456]
[1771944009368,3.69383402,76.705,76.641,0.2]
[1771944009369,11.68894456,76.68,76.641,0.2]
[1771944009672,11.68894456,76.65,76.598,1.11207186]
[1771944009846,1.19218086,76.639,76.606,13.05375597]
[1771944010045,11.68894456,76.64,76.599,13.05500071]
[1771944010046,1.19218086,76.637,76.599,13.05500071]
[1771944010454,1.19218086,76.637,76.598,1.11207186]
[1771944010752,1.19218086,76.637,76.598,14.16709212]
[1771944011149,1.19218086,76.637,76.587,32.64251699]
[1771944011356,1.19218086,76.609,76.57,11.68894456]
[1771944011668,1.19218086,76.609,76.568,1.11207186]
[1771944011975,1.19218086,76.609,76.57,11.68894456]
[1771944012153,13.053467,76.608,76.57,12.80101642]
[1771944012350,45.6871345,76.608,76.571,1.11207186]
[1771944012974,13.053467,76.608,76.581,1.11207186]
[1771944013162,13.05226509,76.616,76.581,1.11207186]
[1771944013359,13.05226509,76.616,76.57,20.07332158]
[1771944013360,20.07332158,76.61,76.57,20.07332158]
[1771944013672,1.19218086,76.609,76.561,1.11207186]
[1771944013877,20.07332158,76.6,76.561,1.11207186]
[1771944014053,13.05670527,76.589,76.55,20.07332158]
[1771944014376,13.05670527,76.589,76.551,1.11207186]
[1771944014670,45.69846844,76.589,76.551,1.11207186]
[1771944014874,13.05590806,76.594,76.551,1.11207186]
[1771944015062,3.69383402,76.613,76.551,1.11207186]
[1771944015063,4.88601488,76.607,76.561,1.11207186]
[1771944015372,1.19218086,76.607,76.571,1.11207186]
[1771944015553,13.05278546,76.612,76.581,1.11207186]
[1771944016667,33.82010847,76.622,76.581,1.11207186]
[1771944016972,1.19218086,76.619,76.581,1.11207186]
[1771944017359,1.19218086,76.609,76.555,1.11207186]
[1771944017555,1.19218086,76.599,76.556,1.11207186]
[1771944017963,3.69383402,76.619,76.57,20.07332158]
[1771944018174,20.07332158,76.62,76.58,20.07332158]
[1771944018478,20.07332158,76.62,76.581,1.11207186]
[1771944018672,20.07332158,76.62,76.58,20.07332158]
[1771944018673,20.07332158,76.62,76.583,1.11207186]
[1771944018880,1.19218086,76.635,76.591,1.11207186]
[1771944019081,13.04784645,76.641,76.61,21.18539344]
[1771944019376,13.04784645,76.641,76.611,1.11207186]
[1771944019677,3.69383402,76.659,76.582,110.99213913]
[1771944019678,13.04325142,76.668,76.621,1.11207186]
[1771944019898,13.04258861,76.672,76.641,1.11207186]
[1771944020092,13.03967974,76.689,76.641,1.11207186]
[1771944020262,13.03967974,76.689,76.651,1.11207186]
[1771944020780,20.07332158,76.7,76.661,1.11207186]
[1771944020980,14.2293106,76.704,76.661,1.11207186]
[1771944021160,20.07332158,76.7,76.661,1.11207186]
[1771944021477,20.07332158,76.72,76.671,1.11207186]
[1771944021878,13.03339154,76.726,76.681,1.11207186]
[1771944022077,1.19218086,76.738,76.691,1.11207186]
[1771944022281,20.07332158,76.73,76.691,1.11207186]
[1771944022459,1.19218086,76.709,76.66,21.18539344]
[1771944022663,20.07332158,76.7,76.661,1.11207186]
[1771944022858,1.19218086,76.689,76.65,20.07332158]
[1771944023066,1.19218086,76.689,76.62,3.69383402]
[1771944023067,1.19218086,76.679,76.637,1.11207186]
[1771944023269,1.19218086,76.659,76.621,1.11207186]
[1771944023564,20.07332158,76.64,76.609,1.11207186]
[1771944023880,1.19218086,76.664,76.621,1.11207186]
[1771944024262,20.07332158,76.66,76.597,13.05534159]
[1771944024460,1.25843098,76.639,76.6,20.07332158]
[1771944024682,21.33175256,76.63,76.594,1.11207186]
[1771944024884,20.07332158,76.62,76.582,1.26943757]
[1771944025061,1.21911515,76.619,76.582,1.26943757]
[1771944025382,20.07332158,76.61,76.571,1.19149992]
[1771944025678,1.21911515,76.619,76.558,1.19149992]
[1771944025679,1.21911515,76.599,76.558,1.19149992]
[1771944026562,20.07332158,76.62,76.571,1.19149992]
[1771944026793,13.04886801,76.635,76.6,20.07332158]
[1771944027074,20.07332158,76.62,76.58,20.07332158]
[1771944027276,1.21911515,76.619,76.57,20.07332158]
[1771944027482,1.21911515,76.609,76.571,13.05977458]
[1771944027786,1.21911515,76.619,76.572,1.19149992]
[1771944027963,20.07332158,76.61,76.572,1.19149992]
[1771944028160,1.21911515,76.599,76.56,21.2648215]
[1771944028497,1.21911515,76.589,76.55,20.07332158]
[1771944028663,1.21911515,76.589,76.551,1.19149992]
[1771944028863,13.05687575,76.588,76.552,13.06301598]
[1771944029097,13.05687575,76.588,76.553,1.19149992]
[1771944030065,13.05687575,76.588,76.552,13.06301598]
[1771944030066,13.05465986,76.601,76.57,20.07332158]
[1771944030362,13.05465986,76.601,76.571,1.19149992]
[1771944030981,32.63446224,76.607,76.571,1.19149992]
[1771944031292,13.05329661,76.609,76.572,1.19149992]
[1771944031477,13.05329661,76.609,76.58,20.07332158]
[1771944031872,13.05240565,76.615,76.581,1.19149992]
[1771944032187,1.21911515,76.614,76.57,20.07332158]
[1771944032489,20.07332158,76.61,76.571,1.19149992]
[1771944033287,13.05329661,76.609,76.572,1.19149992]
[1771944033504,13.05259952,76.614,76.581,1.19149992]
[1771944033785,13.0490202,76.635,76.601,1.19149992]
[1771944033968,1.21911515,76.656,76.611,1.19149992]
[1771944034168,1.21911515,76.656,76.571,267.72537904]
[1771944034169,14.2644084,76.656,76.621,1.19149992]
[1771944034384,13.04529325,76.656,76.63,20.07332158]
[1771944034868,13.04396896,76.664,76.63,20.07332158]
[1771944035169,13.04396896,76.664,76.631,1.19149992]
[1771944035574,20.07332158,76.65,76.582,1.19149992]
[1771944035781,1.21911515,76.629,76.59,20.07332158]
[1771944036203,1.21911515,76.629,76.582,1.19149992]
[1771944036390,1.21911515,76.619,76.571,1.19149992]
[1771944036791,1.21911515,76.609,76.56,20.07332158]
[1771944037301,1.21911515,76.609,76.561,1.19149992]
[1771944037592,13.05159294,76.619,76.58,20.07332158]
[1771944037799,13.05159294,76.619,76.59,20.07332158]
[1771944038199,13.04818695,76.639,76.6,20.07332158]
[1771944038500,13.04818695,76.639,76.601,1.19149992]
[1771944038791,20.07332158,76.65,76.61,20.07332158]
[1771944038997,13.04529325,76.656,76.62,20.07332158]
[1771944039174,13.04529325,76.656,76.621,1.19149992]
[1771944039375,52.1526337,76.698,76.58,3.69383402]
[1771944039376,33.81529773,76.697,76.642,45.66686672]
[1771944039582,32.58785889,76.716,76.68,20.07332158]
[1771944039893,13.03458074,76.719,76.68,21.2648215]
[1771944040097,45.62103259,76.719,76.68,21.2648215]
[1771944040292,1.21911515,76.718,76.68,20.07332158]
[1771944040498,20.07332158,76.71,76.671,1.19149992]
[1771944040793,1.21911515,76.718,76.671,1.19149992]
[1771944041007,20.07332158,76.71,76.671,1.19149992]
[1771944041297,20.07332158,76.69,76.655,1.19149992]
[1771944041505,20.07332158,76.72,76.681,1.19149992]
[1771944041680,45.61033138,76.737,76.691,1.19149992]
[1771944041884,13.03152325,76.737,76.691,1.19149992]
[1771944042098,13.03152325,76.737,76.7,21.2648215]
[1771944042288,13.03152325,76.737,76.68,20.07332158]
[1771944042289,1.21911515,76.729,76.68,20.07332158]
[1771944042500,1.21911515,76.719,76.673,1.19149992]
[1771944043098,1.21911515,76.719,76.68,20.07332158]
[1771944043609,13.03475064,76.718,76.681,13.04104015]
[1771944043899,13.0327093,76.731,76.7,20.07332158]
[1771944044098,13.03118362,76.739,76.701,1.19149992]
[1771944044596,0.1,76.74,76.711,1.19149992]
[1771944044779,13.13103808,76.74,76.711,1.19149992]
[1771944045603,0.1,76.74,76.712,13.03577015]
[1771944045808,0.1,76.75,76.73,20.07332158]
[1771944046029,1.21911515,76.777,76.731,1.19149992]
[1771944046184,13.02705045,76.764,76.731,1.19149992]
[1771944046388,13.02705045,76.764,76.712,45.62519553]
[1771944046389,13.12774556,76.76,76.72,20.07332158]
[1771944046608,1.21911515,76.759,76.72,20.07332158]
[1771944047187,1.21911515,76.759,76.721,1.19149992]
[1771944047612,13.02795799,76.758,76.721,1.19149992]
[1771944047816,1.21911515,76.757,76.721,1.19149992]
[1771944048198,1.21911515,76.757,76.713,13.0354864]
[1771944048402,1.21911515,76.757,76.714,1.19149992]
[1771944048608,1.21911515,76.739,76.7,20.07332158]
[1771944048906,1.21911515,76.739,76.676,1.19149992]
[1771944048907,1.21911515,76.719,76.676,1.19149992]
[1771944049104,1.21911515,76.719,76.68,20.07332158]
[1771944049300,1.21911515,76.719,76.681,1.19149992]
[1771944049498,1.21911515,76.731,76.691,1.19149992]
[1771944049698,14.24971857,76.743,76.702,1.19149992]
[1771944049898,13.03060342,76.743,76.71,20.07332158]
[1771944050101,13.02975715,76.748,76.71,20.07332158]
[1771944050493,14.2488723,76.748,76.702,1.19149992]
[1771944050810,1.21911515,76.747,76.702,1.19149992]
[1771944051015,1.21911515,76.729,76.68,20.07332158]
[1771944051218,1.21911515,76.729,76.681,1.19149992]
[1771944051730,3.69383402,76.747,76.703,1.19149992]
[1771944051892,20.07332158,76.75,76.711,1.19149992]
[1771944052220,0.1,76.76,76.731,1.19149992]
[1771944052422,0.1,76.76,76.74,21.2648215]
[1771944052918,0.1,76.76,76.741,1.19149992]
[1771944053091,13.0252308,76.775,76.741,1.19149992]
[1771944053702,13.0252308,76.775,76.702,215.11824982]
[1771944053703,13.02541257,76.773,76.73,19.99039562]
[1771944053927,21.20951077,76.77,76.731,13.03254225]
[1771944054300,1.21911515,76.769,76.725,1.19149992]
[1771944054615,13.02541257,76.773,76.731,1.19149992]
[1771944054813,13.02439469,76.779,76.741,1.19149992]
[1771944055003,0.1,76.78,76.76,19.99039562]
[1771944055201,0.1,76.78,76.761,1.32282656]
[1771944055796,0.1,76.78,76.763,1.32282656]
[1771944055999,52.04399865,76.859,76.771,1.32282656]
[1771944056000,21.31058372,76.82,76.771,1.32282656]
[1771944056219,21.31058372,76.82,76.762,45.59547692]
[1771944056220,3.69383402,76.824,76.8,19.99039562]
[1771944056401,3.69383402,76.824,76.762,162.84098901]
[1771944056402,1.33106768,76.865,76.82,6.8]
[1771944057226,1.33106768,76.859,76.762,319.16833845]
[1771944057528,1.33106768,76.849,76.81,19.99039562]
[1771944057816,1.33106768,76.839,76.8,19.99039562]
[1771944058021,52.03075184,76.878,76.8,19.99039562]
[1771944058022,19.99039562,77.11,76.851,35.66585207]
[1771944058212,19.99039562,77.11,76.801,304.24260305]
[1771944058213,19.99039562,76.96,76.852,32.50555417]
[1771944058412,19.99039562,77.11,76.811,17.97203025]
[1771944058413,19.99039562,76.99,76.92,19.99039562]
[1771944058609,0.1,76.94,76.92,19.99039562]
[1771944058817,0.1,76.94,76.91,19.99039562]
[1771944059145,0.1,76.94,76.911,45.50714462]
[1771944059428,6.79824943,77.011,76.911,45.50714462]
[1771944059429,19.99039562,76.99,76.93,19.99039562]
[1771944059635,201.24642949,77.02,76.93,19.99039562]
[1771944059800,3.69383402,76.987,76.93,19.99039562]
[1771944060000,1.33106768,76.986,76.93,19.99039562]
[1771944060502,1.33106768,76.986,76.911,45.50714462]
[1771944060503,1.33106768,76.986,76.92,19.99039562]
[1771944060704,3.69383402,76.977,76.92,19.99039562]
[1771944060917,19.99039562,76.93,76.89,1.4474067]
[1771944061108,19.99039562,77.0,76.89,1.4474067]
[1771944061109,3.69383402,76.907,76.89,1.4474067]
[1771944061301,51.99044101,76.938,76.89,1.4474067]
[1771944061302,19.99039562,76.9,76.89,1.4474067]
[1771944061505,3.69383402,76.897,76.844,32.53312804]
[1771944061706,3.69383402,76.897,76.839,1.34414815]
[1771944061707,3.69383402,76.897,76.845,13.0132084]
[1771944061896,19.99039562,76.91,76.851,1.34414815]
[1771944062101,3.69383402,76.907,76.851,1.34414815]
[1771944062412,19.99039562,76.9,76.851,1.34414815]
[1771944062911,19.99039562,76.89,76.845,46.89037756]
[1771944063219,19.99039562,76.89,76.847,14.35701787]
[1771944063603,32.99600343,76.89,76.847,14.35701787]
[1771944063802,3.69383402,76.907,76.861,1.34414815]
[1771944064118,3.69383402,76.907,76.838,52.0571372]
[1771944064119,19.99039562,76.88,76.839,1.34414815]
[1771944064342,19.99039562,76.89,76.84,19.99039562]
[1771944064509,0.03003442,76.919,76.851,1.34414815]
[1771944064703,19.99039562,76.9,76.851,1.34414815]
[1771944065112,19.99039562,76.91,76.852,97.5901733]
[1771944065319,19.99039562,76.91,76.861,1.34414815]
[1771944065514,19.99039562,76.92,76.861,1.34414815]
[1771944065722,13.00068903,76.919,76.861,1.34414815]
[1771944066130,13.00068903,76.919,76.852,97.5901733]
[1771944066131,19.99039562,76.94,76.881,1.34414815]
[1771944066310,12.99646496,76.944,76.891,1.34414815]
[1771944066505,12.99393183,76.959,76.901,1.34414815]
[1771944066825,19.99039562,76.97,76.911,1.34414815]
[1771944067002,12.99224363,76.969,76.921,1.34414815]
[1771944067203,12.99224363,76.969,76.923,1.34414815]
[1771944068001,12.99055586,76.979,76.923,1.34414815]
[1771944068203,12.98940599,76.986,76.931,1.34414815]
[1771944068404,19.99039562,76.97,76.927,1.34414815]
[1771944068606,19.99039562,76.98,76.927,1.34414815]
[1771944068827,19.99039562,76.96,76.911,13.0019415]
[1771944069006,3.69383402,76.983,76.911,13.0019415]
[1771944069007,19.99039562,76.97,76.921,1.34414815]
[1771944069321,45.46694552,76.979,76.923,1.34414815]
[1771944069513,51.94467082,77.006,76.922,13.000182]
[1771944069514,12.98956149,76.985,76.931,1.34414815]
[1771944069903,19.99039562,76.99,76.941,1.34414815]
[1771944070100,19.99039562,77.01,76.961,1.34414815]
[1771944070304,12.98626935,77.005,76.961,1.34414815]
[1771944070507,0.08601259,77.063,76.991,1.34414815]
[1771944070707,19.99039562,77.02,76.98,19.99039562]
[1771944070906,19.99039562,76.99,76.923,1.34414815]
[1771944071129,19.99039562,76.97,76.942,1.34414815]
[1771944071318,51.91754094,77.046,76.95,19.99039562]
[1771944071626,19.99039562,77.0,76.95,19.99039562]
[1771944071852,12.9794276,77.045,76.923,45.5000455]
[1771944071853,19.99039562,76.98,76.951,1.34414815]
[1771944072028,19.99039562,76.99,76.934,1.34414815]
[1771944072208,19.99039562,77.0,76.935,1.32282656]
[1771944072407,1.3201881,76.987,76.923,45.5000455]
[1771944072625,1.39580615,77.041,76.923,13.000013]
[1771944072828,19.99039562,76.95,76.923,13.000013]
[1771944073126,19.99039562,76.97,76.923,13.000013]
[1771944073313,19.99039562,76.96,76.921,32.50087752]
[1771944073512,19.99039562,76.94,76.921,32.50087752]
[1771944073816,19.99039562,76.93,76.915,13.00136514]
[1771944074120,19.99039562,76.94,76.915,45.50477799]
[1771944074324,3.69383402,76.998,76.915,45.50477799]
[1771944074325,1.40867586,76.961,76.915,45.50477799]
[1771944074708,19.99039562,76.93,76.885,13.00643818]
[1771944075020,19.99039562,76.9,76.885,45.52253364]
[1771944075223,19.99039562,76.91,76.857,52.04456349]
[1771944075528,1.40867586,76.93,76.857,52.04456349]
[1771944075529,1.40867586,76.943,76.857,52.04456349]
[1771944075725,19.99039562,76.92,76.86,23.68422964]
[1771944075929,19.99039562,76.9,76.857,52.04456349]
[1771944076129,1.42867466,76.969,76.86,3.69383402]
[1771944076312,19.99039562,76.92,76.86,23.68422964]
[1771944076505,1.42867466,76.94,76.86,3.69383402]
[1771944076715,19.99039562,76.93,76.86,23.68422964]
[1771944077026,19.99039562,76.92,76.861,1.30104994]
[1771944077229,19.99039562,76.92,76.861,318.75723707]
[1771944077527,19.99039562,76.94,76.861,318.75723707]
[1771944077726,19.99039562,76.93,76.874,3.69383402]
[1771944077913,19.99039562,76.92,76.875,0.1227577]
[1771944078118,1.49436657,76.936,76.875,0.1227577]
[1771944078417,19.99039562,76.91,76.861,45.65950585]
[1771944078735,19.99039562,76.92,76.862,0.1227577]
[1771944078936,19.99039562,76.93,76.861,201.66274182]
[1771944079137,19.99039562,76.91,76.861,201.66274182]
[1771944079426,1.61635899,76.919,76.854,3.69383402]
[1771944079629,3.69383402,76.968,76.851,318.79871436]
[1771944079630,19.99039562,76.91,76.851,318.79871436]
[1771944079830,19.99039562,76.89,76.851,45.54267348]
[1771944080230,19.99039562,76.87,76.822,0.02520177]
[1771944080537,19.99039562,76.87,76.823,45.55927261]
[1771944080716,19.99039562,76.88,76.824,0.02520177]
[1771944081125,1.61635899,76.89,76.823,45.55927261]
[1771944081126,19.99039562,76.86,76.823,45.55927261]
[1771944081327,21.60675461,76.89,76.831,0.07380589]
[1771944081532,19.99039562,76.86,76.811,0.07380589]
[1771944081713,19.99039562,76.84,76.801,45.57232327]
[1771944081909,19.99039562,76.84,76.801,162.7582974]
[1771944082120,1.61635899,76.887,76.811,0.12208023]
[1771944082330,1.61635899,76.849,76.801,45.57232327]
[1771944082537,19.99039562,76.83,76.801,45.57232327]
[1771944082714,45.52016543,76.889,76.802,0.12208023]
[1771944082914,1.61635899,76.903,76.841,0.1449337]
[1771944083229,1.61635899,76.903,76.801,397.13024567]
[1771944083230,1.61635899,76.903,76.852,0.1449337]
[1771944083615,1.61635899,76.903,76.851,97.59144317]
[1771944083616,1.61635899,76.899,76.851,45.54267348]
[1771944083819,13.00341456,76.903,76.851,45.54267348]
[1771944083820,84.43971004,76.978,76.862,0.1435051]
[1771944084027,19.99039562,76.94,76.881,0.1435051]
[1771944084236,21.63635364,76.94,76.881,0.1435051]
[1771944084429,1.64595802,76.939,76.89,19.99039562]
[1771944085215,1.64595802,76.939,76.891,45.51898141]
[1771944085536,1.69955917,76.958,76.901,0.17054775]
[1771944085714,1.69955917,76.949,76.891,45.51898141]
[1771944085916,1.69955917,76.949,76.9,20.15950045]
[1771944086440,1.69955917,76.949,76.9,19.99039562]
[1771944086635,1.69955917,76.962,76.901,0.16910483]
[1771944086884,1.69955917,76.959,76.9,19.99039562]
[1771944087027,1.69955917,76.949,76.891,201.58406053]
[1771944087224,1.69955917,76.949,76.901,45.51306224]
[1771944087539,45.43861242,77.027,76.941,1.6981984]
[1771944087847,19.99039562,77.0,76.949,1.6981984]
[1771944088136,19.99039562,77.01,76.961,1.6981984]
[1771944088337,19.99039562,76.98,76.931,1.6981984]
[1771944088536,19.99039562,76.99,76.931,1.6981984]
[1771944088835,19.99039562,76.97,76.918,1.6981984]
[1771944089023,19.99039562,76.99,76.931,1.6981984]
[1771944089222,19.99039562,77.0,76.942,45.48880974]
[1771944089533,1.69955917,76.989,76.943,1.6981984]
[1771944089715,1.69955917,76.989,76.942,45.48880974]
[1771944089921,3.69383402,77.027,76.942,45.48880974]
[1771944089922,19.99039562,77.01,76.951,1.6981984]
[1771944090116,19.99039562,77.0,76.951,1.6981984]
[1771944090535,19.99039562,76.99,76.942,45.48880974]
[1771944090720,1.69955917,76.989,76.943,1.6981984]
[1771944090926,19.99039562,76.97,76.942,45.48880974]
[1771944091126,45.4492332,77.009,76.943,1.6981984]
[1771944091127,19.99039562,76.99,76.943,1.6981984]
[1771944091416,12.97808002,77.053,76.947,3.69383402]
[1771944091637,19.99039562,77.01,76.948,1.6981984]
[1771944091832,32.44772671,77.047,76.948,1.6981984]
[1771944092138,19.99039562,77.03,76.971,1.6981984]
[1771944092445,1.69955917,77.012,76.944,331.40985648]
[1771944092634,1.69955917,77.027,76.944,331.40985648]
[1771944092836,19.99039562,76.98,76.944,331.40985648]
[1771944093034,19.99039562,76.99,76.944,331.40985648]
[1771944093347,12.98094397,77.036,76.946,214.43609802]
[1771944093642,3.69383402,77.057,76.949,3.69383402]
[1771944093842,19.99039562,77.02,76.953,3.69383402]
[1771944094019,19.99039562,77.01,76.949,3.69383402]
[1771944094224,3.69383402,77.06,76.949,3.69383402]
[1771944094436,45.41738576,77.063,76.953,3.69383402]
[1771944094741,19.99039562,77.02,76.954,0.1004806]
[1771944094944,19.99039562,77.01,76.946,318.40511524]
[1771944095140,19.99039562,77.01,76.949,3.69383402]
[1771944095346,19.99039562,77.02,76.953,3.69383402]
[1771944095537,19.99039562,77.03,76.963,3.69383402]
[1771944095724,1.89451332,77.078,76.973,3.69383402]
[1771944095925,19.99039562,77.06,76.993,3.69383402]
[1771944096126,1.89451332,77.089,77.0,19.99039562]
[1771944096336,1.89451332,77.075,77.013,3.69383402]
[1771944096549,19.99039562,77.06,76.99,19.99039562]
[1771944096850,19.99039562,77.04,76.974,0.0925573]
[1771944097051,19.99039562,77.06,76.994,0.0925573]
[1771944097246,19.99039562,77.06,76.954,461.31455155]
[1771944097247,19.99039562,77.06,77.014,1.6981984]
[1771944097448,19.99039562,77.04,76.979,3.69383402]
[1771944097652,19.99039562,77.06,76.994,1.6981984]
[1771944097844,19.99039562,77.04,76.994,1.6981984]
[1771944098023,3.69383402,77.087,76.994,1.6981984]
[1771944098648,84.29297644,77.112,76.984,1.6981984]
[1771944098947,19.99039562,77.03,76.994,1.6981984]
[1771944099244,84.29297644,77.112,76.976,318.28102261]
[1771944099245,19.99039562,77.06,77.012,1.6981984]
[1771944099427,19.99039562,77.07,77.014,1.6981984]
[1771944099624,19.99039562,77.07,77.021,1.6981984]
[1771944100030,19.99039562,77.08,77.021,1.6981984]
[1771944100233,1.69955917,77.079,77.021,1.6981984]
[1771944100437,1.69955917,77.079,77.024,1.6981984]
[1771944100631,1.69955917,77.069,77.024,1.6981984]
[1771944100845,1.69955917,77.069,77.014,1.6981984]
[1771944101039,19.99039562,77.06,77.014,1.6981984]
[1771944101243,3.69383402,77.097,77.014,1.6981984]
[1771944101446,19.99039562,77.09,77.032,149.28860731]
[1771944101625,19.99039562,77.09,77.033,1.6981984]
[1771944101825,1.69955917,77.079,77.032,45.43566309]
[1771944102038,19.99039562,77.08,77.032,45.43566309]
[1771944102039,19.99039562,77.08,77.033,1.6981984]
[1771944102243,1.69955917,77.105,77.033,1.6981984]
[1771944102443,1.69955917,77.079,77.033,1.6981984]
[1771944102648,19.99039562,77.07,77.033,1.6981984]
[1771944102849,19.99039562,77.07,77.021,45.44215214]
[1771944103033,19.99039562,77.05,77.021,12.98347204]
[1771944103453,1.69955917,77.072,77.023,45.44097216]
[1771944103650,1.69955917,77.069,77.023,45.44097216]
[1771944103848,19.99039562,77.06,77.023,45.44097216]
[1771944104244,1.69955917,77.069,77.023,45.44097216]
[1771944104758,19.99039562,77.06,77.023,45.44097216]
[1771944105462,19.99039562,77.05,77.01,45.44864303]
[1771944105757,1.69955917,77.069,77.014,1.6981984]
[1771944106056,1.69955917,77.082,77.014,1.6981984]
[1771944106239,19.99039562,77.07,77.014,1.6981984]
[1771944106441,19.99039562,77.07,77.013,3.69383402]
[1771944106442,21.68995479,77.08,77.021,1.6981984]
[1771944106642,1.69955917,77.079,77.021,1.6981984]
[1771944106856,1.69955917,77.079,77.031,1.6981984]
[1771944107149,12.97084154,77.096,77.014,1.6981984]
[1771944107150,1.69955917,77.069,77.014,1.6981984]
[1771944107542,1.69955917,77.049,77.002,1.6981984]
[1771944107743,19.99039562,77.07,77.01,19.99039562]
[1771944107957,19.99039562,77.07,77.011,1.6981984]
[1771944108261,1.69955917,77.069,77.019,1.6981984]
[1771944108436,1.69955917,77.049,77.001,45.45395513]
[1771944108634,19.99039562,77.07,77.001,266.23030866]
[1771944108858,19.99039562,77.08,77.021,1.6981984]
[1771944109043,19.99039562,77.07,77.021,1.6981984]
[1771944109857,12.97538569,77.069,77.023,1.6981984]
[1771944110058,19.99039562,77.05,77.01,12.98532658]
[1771944110360,19.99039562,77.05,76.967,51.96980715]
[1771944110361,19.99039562,77.04,76.991,1.6981984]
[1771944110657,45.41384992,77.069,77.0,19.99039562]
[1771944110658,19.99039562,77.06,77.0,19.99039562]
[1771944110839,21.68995479,77.06,77.001,1.6981984]
[1771944111346,13.26857373,77.06,77.001,1.6981984]
[1771944111547,1.69955917,77.06,77.011,1.6981984]
[1771944111738,1.69955917,77.06,77.01,11.56901456]
[1771944111739,1.69955917,77.068,77.012,45.44746273]
[1771944111938,11.56901456,77.06,77.013,1.6981984]
[1771944112162,1.69955917,77.059,77.013,1.6981984]
[1771944112551,1.69955917,77.049,77.012,45.44746273]
[1771944112740,1.69955917,77.039,77.012,12.98498935]
[1771944112941,1.69955917,77.039,76.978,51.96287144]
[1771944112942,1.69955917,77.051,77.004,1.6981984]
[1771944113258,1.69955917,77.066,77.011,1.6981984]
[1771944113567,1.69955917,77.049,77.011,1.6981984]
[1771944113859,1.69955917,77.049,77.012,45.44746273]
[1771944114356,11.56901456,77.07,77.013,1.6981984]
[1771944114558,1.69955917,77.074,77.021,1.6981984]
[1771944114740,1.69955917,77.074,77.031,1.6981984]
[1771944114943,51.85384118,77.14,77.012,214.25232429]
[1771944114944,1.69955917,77.089,77.041,1.6981984]
[1771944115663,1.69955917,77.089,77.05,11.55769675]
[1771944115868,116.68879105,77.129,77.031,45.43625293]
[1771944115869,2.1492666,77.079,77.031,45.43625293]
[1771944116046,2.1492666,77.079,77.031,47.41154717]
[1771944116250,2.1492666,77.079,77.032,1.97529424]
[1771944116462,11.55769675,77.07,77.031,12.98178655]
[1771944116666,2.1492666,77.049,77.006,1.97529424]